bitfinex-derivatives/quotes_ETHF0:USTF0_20250708
["timestamp","ask_amount","ask_price","bid_price","bid_amount"]
[1751999301858,1.91108,2616.0,2615.6,4.33262]
[1751999302057,3.54830758,2616.1,2615.6,3.5681]
[1751999302252,3.54830758,2616.1,2615.7,0.76449]
[1751999302448,3.06192758,2616.1,2616.0,0.6303]
[1751999302653,0.76447,2615.8,2615.7,1.2537]
[1751999302957,0.76447,2615.8,2615.7,1.884]
[1751999303153,0.76447,2615.8,2615.7,2.8893]
[1751999304356,0.76447,2615.8,2615.7,3.6538]
[1751999305359,0.76445,2615.9,2615.8,0.76445]
[1751999305559,0.76445,2615.9,2615.8,4.8434]
[1751999305858,3.06199758,2615.9,2615.8,0.6303]
[1751999307459,1.42465,2615.9,2615.8,0.6303]
[1751999308655,1.42465,2615.9,2615.8,1.6356]
[1751999309764,0.76445,2615.9,2615.8,1.6356]
[1751999310153,1.42465,2615.9,2615.8,1.6356]
[1751999310358,0.76445,2615.9,2615.8,0.6303]
[1751999310864,1.42465,2615.9,2615.8,0.6303]
[1751999311062,0.76445,2615.9,2615.8,0.6303]
[1751999311461,1.42465,2615.9,2615.8,0.6303]
[1751999311861,1.42465,2615.9,2615.8,1.6356]
[1751999312363,0.7645,2615.7,2615.6,2.41163]
[1751999312562,0.7645,2615.7,2615.6,3.04193]
[1751999312763,0.76449,2615.8,2615.7,0.7645]
[1751999312958,0.76446,2615.9,2615.8,0.76447]
[1751999313167,0.76443,2616.0,2615.9,0.76443]
[1751999313466,2.54975,2616.4,2615.9,1.6356]
[1751999313766,3.38455763,2616.8,2616.3,0.6303]
[1751999313969,3.38455763,2616.8,2616.5,3.97205]
[1751999314462,0.76423,2616.6,2616.5,3.97205]
[1751999314664,0.76422,2616.7,2616.5,4.51110853]
[1751999314865,0.76422,2616.7,2616.6,0.53905853]
[1751999315266,3.38455763,2616.8,2616.6,0.53905853]
[1751999315465,4.14873763,2616.8,2616.7,0.53905853]
[1751999315864,4.14873763,2616.8,2616.7,1.30325853]
[1751999316566,0.76418,2616.8,2616.7,1.30325853]
[1751999316960,0.76418,2616.8,2616.7,0.53905853]
[1751999317159,1.42438,2616.8,2616.7,0.53905853]
[1751999317365,1.42438,2616.8,2616.7,2.17465853]
[1751999317568,0.76418,2616.8,2616.7,2.17465853]
[1751999318071,1.42438,2616.8,2616.7,2.17465853]
[1751999318571,1.42438,2616.8,2616.7,1.16935853]
[1751999320665,1.42438,2616.8,2616.7,1.17104354]
[1751999322071,1.42438,2616.8,2616.7,2.17634354]
[1751999322269,0.76416,2616.9,2616.7,2.94053354]
[1751999322468,0.76416,2616.9,2616.8,1.54604354]
[1751999322668,0.76416,2616.9,2616.8,2.17634354]
[1751999323171,3.06169758,2616.9,2616.8,1.17104354]
[1751999323373,2.40149758,2616.9,2616.8,1.17104354]
[1751999323767,3.06169758,2616.9,2616.8,1.17104354]
[1751999324568,3.06169758,2616.9,2616.8,2.17634354]
[1751999326075,3.06169758,2616.9,2616.8,1.17104354]
[1751999326871,6.90185,2616.9,2616.8,0.46038167]
[1751999327073,1.90185,2616.9,2616.8,0.46038167]
[1751999327270,2.70755,2616.9,2616.8,0.46038167]
[1751999327866,29.05755,2616.9,2616.8,0.46038167]
[1751999328175,29.05755,2616.9,2616.8,1.09068167]
[1751999329977,29.05755,2616.9,2616.8,0.46038167]
[1751999330273,33.39735,2616.9,2616.8,0.46038167]
[1751999330478,33.39735,2616.9,2616.8,1.67e-06]
[1751999330479,34.55105,2616.9,2616.8,1.67e-06]
[1751999330774,37.93560763,2616.9,2616.8,1.67e-06]
[1751999332382,37.93440763,2616.9,2616.8,1.67e-06]
[1751999334384,36.78190763,2616.9,2616.8,1.67e-06]
[1751999334682,37.45810763,2616.9,2616.8,1.67e-06]
[1751999335383,32.45810763,2616.9,2616.8,1.67e-06]
[1751999335683,29.07355,2616.9,2616.8,1.67e-06]
[1751999336080,28.39635,2616.9,2616.8,0.65880167]
[1751999336282,29.07255,2616.9,2616.8,1.67e-06]
[1751999338281,28.39635,2616.9,2616.8,0.65880167]
[1751999338779,29.07255,2616.9,2616.8,0.65880167]
[1751999339880,29.07255,2616.9,2616.8,0.6588]
[1751999340582,0.76423,2616.6,2616.5,0.9654]
[1751999340881,27.11123,2616.6,2616.5,1.6242]
[1751999342273,0.76426,2616.5,2616.4,0.6273]
[1751999342473,0.76426,2616.5,2616.4,1.1665605]
[1751999342681,0.76426,2616.5,2616.4,1.8253605]
[1751999342884,0.76426,2616.5,2616.4,2.79075978]
[1751999345685,1.44046,2616.5,2616.4,2.79075978]
[1751999347086,3.07780758,2616.5,2616.4,2.79075978]
[1751999347278,1.44046,2616.5,2616.4,2.79075978]
[1751999348085,2.61899119,2616.5,2616.4,2.42277696]
[1751999348283,3.07780758,2616.5,2616.4,2.42277696]
[1751999349087,2.61897389,2616.5,2616.4,3.38817696]
[1751999349389,0.76426,2616.5,2616.4,3.38817696]
[1751999349689,25.84994289,2616.6,2616.4,3.38817696]
[1751999349878,0.76426,2616.5,2616.4,2.2515]
[1751999350078,0.76426,2616.5,2616.4,2.48095201]
[1751999350785,0.76426,2616.5,2616.4,3.44635201]
[1751999351490,0.79206,2616.5,2616.4,3.44635201]
[1751999352689,0.76426,2616.5,2616.4,3.44635201]
[1751999352887,27.10626,2616.5,2616.4,3.44635201]
[1751999353089,0.76426,2616.5,2616.4,4.82595201]
[1751999353785,0.76426,2616.5,2616.4,4.80907638]
[1751999353986,0.76426,2616.5,2616.4,5.57334638]
[1751999354485,0.76426,2616.5,2616.4,4.80907638]
[1751999354683,0.76426,2616.5,2616.4,3.42947638]
[1751999355392,0.79206,2616.5,2616.4,3.42947638]
[1751999356687,2.42940758,2616.5,2616.4,3.42947638]
[1751999356988,2.42940758,2616.5,2616.4,2.46407638]
[1751999357992,2.42940758,2616.5,2616.4,3.42947638]
[1751999358190,2.42940758,2616.5,2616.4,2.46407638]
[1751999358402,28.76740758,2616.5,2616.4,2.46407638]
[1751999358989,28.76740758,2616.5,2616.4,3.42947638]
[1751999359194,27.13006,2616.5,2616.4,3.4199208]
[1751999360096,26.3658,2616.5,2616.4,3.4199208]
[1751999360291,27.13006,2616.5,2616.4,3.4199208]
[1751999361087,27.13006,2616.5,2616.4,2.83346803]
[1751999361289,0.41927915,2616.5,2616.4,3.29990089]
[1751999361489,26.75627915,2616.5,2616.4,3.29990089]
[1751999362190,26.75627915,2616.5,2616.4,1.75253286]
[1751999362397,26.75627915,2616.5,2616.4,0.46643286]
[1751999362594,0.76432,2616.3,2616.2,2.38567464]
[1751999362797,0.76432,2616.3,2616.2,1.335]
[1751999362995,0.76432,2616.3,2616.2,4.00507464]
[1751999367499,26.334,2616.4,2616.2,4.00507464]
[1751999367691,0.76432,2616.3,2616.2,3.04347464]
[1751999368296,0.76432,2616.3,2616.2,4.00507464]
[1751999368697,0.76432,2616.3,2616.2,2.2966]
[1751999370398,0.76432,2616.3,2616.2,0.6578]
[1751999370598,0.76432,2616.3,2616.2,1.6194]
[1751999370797,27.09632,2616.3,2616.2,1.6194]
[1751999371300,27.09632,2616.3,2616.2,3.32965685]
[1751999373300,0.76432,2616.3,2616.2,3.32965685]
[1751999373602,27.09432,2616.3,2616.2,3.25674758]
[1751999373802,27.09432,2616.3,2616.2,1.6194]
[1751999373991,27.09432,2616.3,2616.2,3.32957117]
[1751999374404,27.09432,2616.3,2616.2,1.6194]
[1751999377902,27.09432,2616.3,2616.2,3.32973412]
[1751999378603,27.09432,2616.3,2616.2,3.32972826]
[1751999379205,27.09432,2616.3,2616.2,1.6194]
[1751999381306,27.09432,2616.3,2616.2,3.32972826]
[1751999384300,27.09432,2616.3,2616.2,1.6194]
[1751999385711,27.09432,2616.3,2616.2,2.0329714]
[1751999386711,0.76432,2616.3,2616.2,2.0329714]
[1751999387010,27.08632,2616.3,2616.2,2.0329714]
[1751999389208,27.08632,2616.3,2616.2,3.74329966]
[1751999389410,27.08632,2616.3,2616.2,4.50764966]
[1751999390415,27.08632,2616.3,2616.2,2.7973214]
[1751999390808,26.83778181,2616.3,2616.2,2.7973214]
[1751999391211,0.51578181,2616.3,2616.2,2.7973214]
[1751999391509,0.76432,2616.4,2616.3,0.76429]
[1751999391712,0.76429,2616.5,2616.4,0.76426]
[1751999391912,0.76429,2616.5,2616.4,5.13307898]
[1751999392113,0.76429,2616.5,2616.4,8.1418562]
[1751999392415,0.76429,2616.5,2616.4,8.1557562]
[1751999392815,26.316,2616.7,2616.5,0.76423]
[1751999393017,27.0802,2616.7,2616.6,2.07175332]
[1751999393314,27.0802,2616.7,2616.6,1.09625332]
[1751999393614,28.71754758,2616.7,2616.6,0.42165332]
[1751999394012,28.71754758,2616.7,2616.6,1.09625332]
[1751999394213,29.98354758,2616.7,2616.6,0.42165332]
[1751999395913,33.19134758,2616.7,2616.6,0.42165332]
[1751999398514,28.3462,2616.7,2616.6,1.09625332]
[1751999398713,31.554,2616.7,2616.6,0.42165332]
[1751999400018,34.99425941,2616.7,2616.6,0.42165332]
[1751999401821,36.63160699,2616.7,2616.6,0.42165332]
[1751999402118,36.63160699,2616.7,2616.6,1.09625332]
[1751999402318,4.20445941,2616.8,2616.6,2.07175332]
[1751999402523,4.20445941,2616.8,2616.7,6.97681825]
[1751999402524,0.76419,2616.8,2616.7,6.97681825]
[1751999402724,26.308,2616.8,2616.7,9.39111825]
[1751999403124,0.76414,2617.0,2616.8,0.76418]
[1751999403325,0.76412,2617.0,2616.9,0.42165332]
[1751999404222,27.07112,2617.0,2616.9,0.42165332]
[1751999404627,3.44025941,2617.5,2616.9,3.76901825]
[1751999404926,0.76405,2617.3,2617.1,5.60923758]
[1751999405227,0.76405,2617.3,2617.2,1.05125332]
[1751999405421,26.304,2617.4,2617.3,0.76402]
[1751999405422,0.76401,2617.4,2617.3,0.76402]
[1751999405623,26.304,2617.4,2617.3,0.42165332]
[1751999405827,27.068,2617.4,2617.3,0.42165332]
[1751999406027,0.764,2617.4,2617.3,0.42165332]
[1751999406228,0.764,2617.4,2617.3,2.07175332]
[1751999406436,0.764,2617.4,2617.3,3.38805332]
[1751999406932,0.764,2617.4,2617.3,5.0254009]
[1751999407332,0.764,2617.4,2617.3,5.7894309]
[1751999407834,0.764,2617.4,2617.3,5.0254009]
[1751999408031,0.764,2617.4,2617.3,3.38805332]
[1751999409033,2.40134758,2617.4,2617.3,0.42165332]
[1751999409336,2.40134758,2617.4,2617.3,1.09625332]
[1751999409733,3.69074758,2617.4,2617.3,1.09625332]
[1751999410133,3.2078,2617.7,2617.3,3.7091009]
[1751999410438,3.97173,2617.7,2617.6,1.63734758]
[1751999410638,0.76396,2617.6,2617.4,2.0391]
[1751999410835,0.76396,2617.6,2617.5,0.42948658]
[1751999411039,3.2078,2617.7,2617.5,4.31188658]
[1751999411040,0.76393,2617.7,2617.5,4.31188658]
[1751999411239,0.76393,2617.7,2617.6,1.40498658]
[1751999411240,0.76391,2617.7,2617.6,1.40498658]
[1751999411540,1.63734758,2618.0,2617.6,2.07958658]
[1751999411741,0.7639,2617.8,2617.7,0.42948658]
[1751999411938,0.7639,2617.8,2617.7,2.07958658]
[1751999412439,0.76388,2617.9,2617.7,2.84349658]
[1751999412634,0.76388,2617.9,2617.8,0.42948658]
[1751999412840,0.76388,2617.9,2617.8,2.07958658]
[1751999414740,0.76385,2617.9,2617.8,5.28738658]
[1751999414939,0.76385,2617.9,2617.8,2.07958658]
[1751999415138,2.40119758,2617.9,2617.8,0.42948658]
[1751999415343,0.76385,2617.9,2617.8,0.42948658]
[1751999415540,7.07065,2617.9,2617.8,6.58e-06]
[1751999417640,2.07065,2617.9,2617.8,6.58e-06]
[1751999418842,7.07065,2617.9,2617.8,6.58e-06]
[1751999419045,36.56545,2617.9,2617.8,6.58e-06]
[1751999420541,0.76406,2617.2,2617.1,0.6925]
[1751999420739,2.40140758,2617.2,2617.1,1.3671]
[1751999420938,2.40140758,2617.2,2617.1,1.346]
[1751999421245,1.91032,2617.0,2616.6,3.2078]
[1751999421435,26.286,2617.0,2616.7,0.6304]
[1751999421637,26.286,2617.0,2616.6,1.629]
[1751999421638,26.286,2617.0,2616.6,0.6535]
[1751999421944,26.286,2617.0,2616.7,1.6059]
[1751999421945,0.76418,2616.8,2616.7,1.6059]
[1751999422144,0.76418,2616.8,2616.7,2.6059]
[1751999422341,26.286,2617.0,2616.8,0.76416]
[1751999422644,5.35001941,2617.8,2616.9,6.80153]
[1751999422841,1.90972,2617.8,2617.4,1.63734758]
[1751999423144,0.76394,2617.6,2617.5,1.6603]
[1751999423545,0.76394,2617.6,2617.5,2.3138]
[1751999424344,0.76393,2617.7,2617.5,3.07777]
[1751999424546,0.76392,2617.7,2617.6,1.0299]
[1751999424847,0.76392,2617.7,2617.6,3.0054]
[1751999426351,0.76392,2617.7,2617.6,1.6834]
[1751999426539,0.76392,2617.7,2617.6,0.6535]
[1751999426745,0.76397,2617.5,2617.4,1.0299]
[1751999426945,0.76397,2617.5,2617.4,1.6834]
[1751999427245,0.76397,2617.5,2617.4,0.6535]
[1751999427440,0.76397,2617.5,2617.4,1.17488805]
[1751999427646,0.76397,2617.5,2617.4,1.59878784]
[1751999427951,2.13267,2617.5,2617.4,1.59881971]
[1751999428147,2.13267,2617.5,2617.4,0.94531971]
[1751999428549,2.13267,2617.5,2617.4,1.59881971]
[1751999430651,7.13267,2617.5,2617.4,9.71e-06]
[1751999431650,52.51968255,2617.5,2617.4,9.71e-06]
[1751999431850,0.76429,2616.4,2616.3,1.0299]
[1751999432052,0.39153729,2616.4,2616.3,1.6834]
[1751999432252,29.82879758,2616.8,2616.3,1.6834]
[1751999432551,0.76429,2616.5,2616.4,2.3266]
[1751999432741,0.76429,2616.5,2616.4,3.74439]
[1751999432947,0.76426,2616.5,2616.4,2.9801]
[1751999433355,0.76426,2616.6,2616.4,3.74438]
[1751999433550,0.76426,2616.6,2616.5,1.2967]
[1751999433748,26.281,2616.8,2616.5,1.2967]
[1751999433950,0.76423,2616.6,2616.5,1.2967]
[1751999434151,0.76423,2616.6,2616.5,2.9801]
[1751999434442,0.76423,2616.6,2616.5,1.6834]
[1751999435250,0.76423,2616.6,2616.5,4.8912]
[1751999436751,0.76423,2616.6,2616.5,1.6834]
[1751999441854,0.76423,2616.6,2616.5,2.9719]
[1751999442655,0.76423,2616.6,2616.5,3.3861395]
[1751999446456,0.76423,2616.6,2616.5,4.0725395]
[1751999447057,0.76423,2616.6,2616.5,3.6583]
[1751999448261,0.76423,2616.6,2616.5,2.3698]
[1751999450460,2.40157758,2616.6,2616.5,2.3698]
[1751999450657,2.40157758,2616.6,2616.5,1.3399]
[1751999451363,0.76432,2616.3,2616.2,3.2078]
[1751999451565,0.76435,2616.2,2616.1,1.70766648]
[1751999451862,0.76435,2616.2,2615.9,1.70766648]
[1751999451863,0.76441,2616.0,2615.9,1.70766648]
[1751999452065,0.76444,2615.9,2615.8,1.70766648]
[1751999452253,0.76447,2615.8,2615.7,1.70766648]
[1751999452454,3.73301758,2615.8,2615.7,0.6599]
[1751999453569,6.94081758,2615.8,2615.7,0.6599]
[1751999454063,0.76461,2615.3,2615.2,1.70766648]
[1751999454268,0.76473,2614.9,2614.8,1.70766648]
[1751999454457,2.40207758,2614.9,2614.8,0.6599]
[1751999455863,1.63734758,2614.9,2614.7,0.671]
[1751999456062,0.76473,2614.9,2614.8,0.6599]
[1751999456765,1.43003,2614.9,2614.8,0.6599]
[1751999458168,0.6653,2614.9,2614.5,3.2078]
[1751999458363,2.40216758,2614.6,2614.5,3.2078]
[1751999458563,2.40216758,2614.6,2614.5,3.8677]
[1751999458763,3.06746758,2614.6,2614.5,3.8677]
[1751999459862,3.06746758,2614.6,2614.5,3.2078]
[1751999460469,2.30264758,2614.6,2614.2,0.6676]
[1751999460672,2.30264758,2614.6,2614.5,0.6599]
[1751999460868,3.06748758,2614.6,2614.5,0.6599]
[1751999461067,4.33898758,2614.6,2614.5,0.6599]
[1751999461258,3.06748758,2614.6,2614.5,0.6599]
[1751999461459,2.30264758,2614.6,2614.2,0.6676]
[1751999461664,0.76494,2614.2,2614.1,3.2078]
[1751999461970,1.43024,2614.2,2614.1,3.8677]
[1751999462168,3.06758758,2614.2,2614.1,3.8677]
[1751999462468,0.6653,2614.2,2614.1,3.8677]
[1751999462668,1.43024,2614.2,2614.1,3.8677]
[1751999463067,0.6653,2614.2,2614.1,6.27000758]
[1751999463473,0.6653,2614.2,2614.1,11.27000758]
[1751999464069,4.5805,2615.0,2614.7,0.76479]
[1751999464273,0.7648,2614.7,2614.5,3.97264]
[1751999464479,0.76474,2614.9,2614.6,0.76479]
[1751999464671,6.21784758,2615.0,2614.6,0.76479]
[1751999464672,5.60986758,2615.0,2614.7,0.76478]
[1751999464865,3.2078,2615.0,2614.6,1.4251]
[1751999465167,0.76477,2614.8,2614.6,1.4251]
[1751999465366,3.2078,2615.0,2614.8,0.76475]
[1751999465367,3.97251,2615.0,2614.8,0.76475]
[1751999465566,3.2078,2615.0,2614.7,2.44447]
[1751999465867,3.2078,2615.0,2614.8,0.76474]
[1751999465868,0.76473,2615.0,2614.8,0.76474]
[1751999466066,0.76476,2614.8,2614.7,1.6797]
[1751999466265,0.76475,2614.9,2614.7,1.6797]
[1751999466666,0.76475,2614.9,2614.7,2.44449]
[1751999466870,0.76476,2614.9,2614.8,1.0198]
[1751999467066,0.76476,2614.9,2614.8,1.6797]
[1751999467871,0.76473,2614.9,2614.8,1.6797]
[1751999468966,0.76482,2614.6,2614.5,4.2276]
[1751999469167,1.3732,2614.8,2614.5,0.6599]
[1751999469371,0.76483,2614.6,2614.5,0.6599]
[1751999470179,1.3732,2614.8,2614.5,1.42474]
[1751999470376,0.76482,2614.6,2614.5,0.6599]
[1751999470570,0.76488,2614.4,2614.3,1.0198]
[1751999470768,4.17335112,2614.4,2614.3,1.0198]
[1751999471371,5.52505112,2614.4,2614.3,1.0198]
[1751999472077,0.76488,2614.4,2614.3,1.6797]
[1751999472378,0.76488,2614.4,2613.9,3.2078]
[1751999472379,0.76499,2614.0,2613.9,3.2078]
[1751999472574,0.76499,2614.0,2613.9,3.8677]
[1751999472971,0.76499,2614.0,2613.9,4.8875]
[1751999474878,1.91222,2614.4,2613.9,4.8875]
[1751999475173,0.76499,2614.0,2613.9,3.8677]
[1751999475573,0.76498,2614.1,2613.9,4.63271]
[1751999475773,3.2078,2614.5,2614.0,1.0198]
[1751999476079,3.2078,2614.5,2614.4,0.6599]
[1751999476274,3.97265,2614.5,2614.4,0.6599]
[1751999476580,0.76484,2614.6,2614.4,1.6797]
[1751999476775,0.76484,2614.6,2614.5,1.0198]
[1751999477079,0.76484,2614.6,2614.5,1.6797]
[1751999477780,3.2078,2614.9,2614.5,1.6797]
[1751999477977,63.61730366,2615.6,2614.8,4.17323112]
[1751999478178,63.61730366,2615.6,2614.9,3.898]
[1751999478179,0.7647,2615.0,2614.9,3.898]
[1751999478369,3.1702,2615.5,2614.9,4.5579]
[1751999478575,1.2588,2615.5,2615.0,1.0198]
[1751999478775,0.76467,2615.1,2615.0,1.0198]
[1751999478979,0.76467,2615.1,2615.0,3.0573]
[1751999479777,0.76467,2615.1,2615.0,0.6599]
[1751999480082,0.76467,2615.1,2615.0,1.6797]
[1751999481278,0.76467,2615.1,2615.0,3.0233]
[1751999481683,0.76464,2615.3,2615.0,6.99577]
[1751999481880,3.42917366,2616.1,2615.2,3.40847112]
[1751999482085,8.54788366,2616.2,2616.0,0.6774]
[1751999482289,0.76438,2616.1,2616.0,0.6774]
[1751999482478,0.76447,2615.8,2615.7,0.6621]
[1751999482677,0.76447,2615.8,2615.7,1.3395]
[1751999482880,0.76447,2615.8,2615.7,2.3528]
[1751999484680,0.76456,2615.5,2615.4,1.0133]
[1751999484983,0.76456,2615.5,2615.4,1.6907]
[1751999485189,0.76455,2615.6,2615.4,1.6907]
[1751999485378,0.76455,2615.6,2615.4,0.6774]
[1751999485585,0.76455,2615.6,2615.5,1.0133]
[1751999485885,0.76455,2615.6,2615.5,1.6907]
[1751999487080,0.76458,2615.4,2615.3,3.2078]
[1751999487283,0.76458,2615.4,2615.3,3.8852]
[1751999487786,0.76458,2615.4,2615.3,4.8985]
[1751999488287,0.76458,2615.4,2615.3,3.8852]
[1751999488483,0.76458,2615.4,2615.0,1.6754]
[1751999488484,0.76467,2615.1,2615.0,1.6754]
[1751999488686,0.76467,2615.1,2615.0,2.3528]
[1751999488983,0.76466,2615.2,2615.0,3.1175]
[1751999489188,2.13764,2615.3,2615.1,0.76467]
[1751999489381,0.76464,2615.2,2615.1,1.0133]
[1751999489685,1.91145,2615.5,2615.0,0.6621]
[1751999489686,0.76467,2615.1,2615.0,0.6621]
[1751999489984,0.76467,2615.1,2615.0,1.3395]
[1751999490380,0.76467,2615.1,2615.0,2.3528]
[1751999494882,29.48986,2615.5,2615.0,2.3528]
[1751999495082,0.76461,2615.3,2615.2,3.2078]
[1751999495284,0.76461,2615.3,2615.2,4.8985]
[1751999495480,0.76461,2615.3,2615.2,3.8852]
[1751999495687,0.76461,2615.3,2615.2,0.6774]
[1751999495881,0.661,2615.4,2614.8,3.2078]
[1751999496088,0.76467,2615.1,2615.0,0.6774]
[1751999496487,2.06947,2615.1,2615.0,0.6774]
[1751999497789,0.76473,2614.9,2614.8,3.2078]
[1751999497993,0.76473,2614.9,2614.8,0.6774]
[1751999498189,0.76482,2614.6,2614.5,4.2211]
[1751999498585,0.76482,2614.6,2614.5,3.8852]
[1751999499391,0.76488,2614.4,2614.3,0.6869]
[1751999499590,0.76488,2614.4,2614.3,0.6774]
[1751999499991,2.54803,2614.8,2614.3,1.6907]
[1751999500201,0.76488,2614.4,2614.3,0.6774]
[1751999500703,0.76488,2614.4,2614.3,1.6907]
[1751999500901,0.76486,2614.5,2614.3,2.45561]
[1751999501102,3.2078,2614.9,2614.4,4.2211]
[1751999501303,5.11937,2615.3,2614.8,0.6774]
[1751999501504,0.76469,2615.1,2614.9,2.43512]
[1751999501701,0.76469,2615.1,2615.0,1.6907]
[1751999502000,5.11935,2615.3,2615.0,1.6907]
[1751999502001,3.2078,2615.3,2615.0,2.45538]
[1751999502194,1.91134,2615.6,2615.0,5.1465]
[1751999502195,0.76467,2615.1,2615.0,5.1465]
[1751999502398,0.76467,2615.1,2615.0,4.4691]
[1751999502600,0.76467,2615.1,2615.0,6.1598]
[1751999502901,5.1664,2615.7,2615.2,0.76463]
[1751999502902,0.76462,2615.3,2615.2,0.76463]
[1751999503101,0.76464,2615.3,2615.2,2.45531]
[1751999503302,0.76464,2615.3,2615.2,1.6907]
[1751999503501,0.76464,2615.3,2615.2,2.45534]
[1751999503903,0.7646,2615.4,2615.3,0.7646]
[1751999504103,0.7646,2615.4,2615.3,5.9111]
[1751999504304,0.7646,2615.4,2615.3,6.9244]
[1751999504702,1.91096,2616.1,2615.3,11.1598]
[1751999505008,0.76441,2616.0,2615.9,3.2078]
[1751999505207,0.76441,2616.0,2615.9,3.8852]
[1751999505507,0.76441,2616.0,2615.9,4.8985]
[1751999507408,0.76441,2616.0,2615.9,5.66294]
[1751999507702,1.9108,2616.4,2615.9,5.66294]
[1751999507703,3.24169,2616.5,2616.0,0.76441]
[1751999508008,0.76432,2616.3,2616.2,3.97215]
[1751999508209,3.40847112,2617.0,2616.4,0.6774]
[1751999508210,3.23734,2617.0,2616.4,0.6774]
[1751999508406,0.7642,2616.8,2616.5,3.2078]
[1751999508606,6.63697366,2617.1,2616.5,3.2078]
[1751999508607,0.76423,2616.6,2616.5,4.5437]
[1751999508904,0.76422,2616.7,2616.6,0.76422]
[1751999509109,0.76422,2616.7,2616.6,1.6907]
[1751999511312,0.76422,2616.7,2616.6,2.45493]
[1751999511708,0.76422,2616.7,2616.6,1.6907]
[1751999512413,0.76423,2616.6,2616.5,3.2078]
[1751999512713,0.76423,2616.6,2616.5,3.8618]
[1751999512908,0.76423,2616.6,2616.5,4.8027]
[1751999513416,0.76423,2616.6,2616.5,5.56696]
[1751999513610,0.76423,2616.7,2616.6,0.76422]
[1751999513810,0.76423,2616.7,2616.6,1.41822]
[1751999514003,0.76423,2616.7,2616.6,2.35912]
[1751999514812,1.327,2617.1,2616.6,1.5949]
[1751999515018,0.76415,2616.9,2616.8,3.2078]
[1751999515312,0.76415,2616.9,2616.8,3.8618]
[1751999515714,0.76415,2616.9,2616.8,4.8027]
[1751999516718,0.76415,2616.9,2616.8,0.654]
[1751999516915,2.12135,2616.9,2616.8,0.654]
[1751999517513,2.12135,2616.9,2616.8,1.5949]
[1751999518514,2.12135,2616.9,2616.8,0.654]
[1751999519616,0.76423,2616.6,2616.5,3.2078]
[1751999519816,0.76423,2616.6,2616.5,3.8618]
[1751999522817,0.76423,2616.6,2616.2,0.9409]
[1751999522818,5.31910112,2616.6,2616.2,0.9409]
[1751999523116,5.31910112,2616.6,2616.1,3.2078]
[1751999523117,0.76435,2616.2,2616.1,3.2078]
[1751999523422,0.76435,2616.2,2616.1,3.8618]
[1751999524714,1.2585,2616.5,2616.1,4.8027]
[1751999524914,0.76433,2616.3,2616.2,0.9409]
[1751999525115,0.76423,2616.6,2616.2,1.5949]
[1751999525315,0.76426,2616.5,2616.4,3.2078]
[1751999525513,0.76426,2616.5,2616.4,3.8618]
[1751999525717,0.76426,2616.5,2616.4,4.8027]
[1751999526726,0.76436,2616.2,2616.1,4.1487]
[1751999526919,0.76436,2616.2,2616.1,4.8027]
[1751999527612,0.76436,2616.2,2616.1,5.56708]
[1751999527819,1.341,2616.4,2616.1,5.56708]
[1751999528023,0.76432,2616.3,2616.2,0.9409]
[1751999528225,0.76432,2616.3,2616.2,1.5949]
[1751999528821,0.76432,2616.3,2616.2,2.35925]
[1751999529220,0.76432,2616.3,2616.2,1.5949]
[1751999530026,0.76432,2616.3,2616.2,0.654]
[1751999530421,2.15182,2616.3,2616.2,0.654]
[1751999531725,2.81712,2616.3,2616.2,0.654]
[1751999532519,0.76435,2616.2,2616.1,3.2078]
[1751999532724,0.76435,2616.2,2616.1,4.1487]
[1751999532924,0.76435,2616.2,2616.1,4.8027]
[1751999533727,0.76435,2616.2,2616.1,3.8618]
[1751999533925,2.09925,2616.2,2616.1,3.8618]
[1751999534829,3.73645407,2616.2,2616.1,3.8618]
[1751999535329,3.73645407,2616.2,2616.1,5.56188383]
[1751999535927,3.73645407,2616.2,2616.1,6.50278383]
[1751999537625,2.40155407,2616.2,2616.1,3.29498383]
[1751999538124,0.6653,2616.3,2616.1,6.50278383]
[1751999538327,0.76433,2616.3,2616.2,2.64098383]
[1751999538628,0.76433,2616.3,2616.2,1.5949]
[1751999540330,0.76433,2616.3,2616.2,0.654]
[1751999540927,2.15173,2616.3,2616.2,0.654]
[1751999542527,0.76435,2616.2,2616.1,1.70008383]
[1751999542728,3.78895407,2616.2,2616.1,2.35848383]
[1751999542924,0.76435,2616.2,2616.1,1.5992]
[1751999543327,0.76435,2616.2,2616.1,3.29928383]
[1751999543827,0.76435,2616.2,2616.1,2.35848383]
[1751999544032,0.76435,2616.2,2616.1,0.6584]
[1751999545834,0.76441,2616.0,2615.9,0.87850383]
[1751999546136,4.1703583,2616.0,2615.9,0.6584]
[1751999546637,1.91113,2615.9,2615.5,3.2078]
[1751999546931,1.91113,2615.9,2615.2,2.28034247]
[1751999546932,0.76461,2615.3,2615.2,2.28034247]
[1751999547236,0.76461,2615.3,2615.1,3.2078]
[1751999547237,0.76464,2615.2,2615.1,3.2078]
[1751999547430,0.76467,2615.1,2615.0,4.0]
[1751999547631,0.76467,2615.1,2615.0,4.6584]
[1751999548931,0.76467,2615.1,2615.0,4.0]
[1751999550736,0.76467,2615.1,2615.0,4.6584]
[1751999552831,3.2078,2615.3,2615.0,9.0051483]
[1751999553032,0.76459,2615.4,2615.2,3.8662]
[1751999553231,0.76459,2615.4,2615.3,0.6852]
[1751999553439,0.76458,2615.5,2615.3,0.6852]
[1751999553638,0.76458,2615.5,2615.3,1.44981]
[1751999553834,33.6368483,2616.1,2615.3,2.0435]
[1751999554042,0.76456,2615.5,2615.3,2.8081]
[1751999554339,0.76454,2615.6,2615.4,0.76458]
[1751999554540,0.76454,2615.6,2615.4,2.12288]
[1751999554740,0.76453,2615.6,2615.4,2.12288]
[1751999555038,0.76456,2615.5,2615.4,1.3583]
[1751999555435,0.76458,2615.4,2615.3,0.6852]
[1751999556345,0.76461,2615.3,2615.2,3.8662]